[Event "*** Qualifier 1: Titled Tuesday 3|2 Blitz"]
[Site "Chess.com"]
[Date "2017.04.04"]
[Round "3"]
[White "FLchessplayer"]
[Black "AndrewMcStone"]
[Result "1-0"]
[WhiteElo "2029"]
[BlackElo "2008"]
[TimeControl "180+2"]
[EndTime "13:39:00 PDT"]
[Termination "FLchessplayer won on time"]

1. d4 {[%clk 0:03:02]} 1... Nf6 {[%clk 0:02:58.2]} 2. Nf3 {[%clk 0:02:57.2]}
2... g6 {[%clk 0:02:58]} 3. Bf4 {[%clk 0:02:56.9]} 3... d6 {[%clk 0:02:58.3]} 4.
Qc1 {[%clk 0:02:57.6]} 4... h6 {[%clk 0:02:41.8]} 5. h3 {[%clk 0:02:31.2]} 5...
Bg7 {[%clk 0:02:40.8]} 6. Nc3 {[%clk 0:02:32.3]} 6... c5 {[%clk 0:02:35.7]} 7.
dxc5 {[%clk 0:02:31]} 7... dxc5 {[%clk 0:02:29.7]} 8. e4 {[%clk 0:02:31.5]} 8...
Nc6 {[%clk 0:02:21.1]} 9. Bb5 {[%clk 0:02:31.5]} 9... g5 {[%clk 0:01:21.9]} 10.
Be3 {[%clk 0:02:28.1]} 10... Qb6 {[%clk 0:00:54.5]} 11. O-O {[%clk 0:02:22.8]}
11... Bd7 {[%clk 0:00:46.6]} 12. a4 {[%clk 0:02:21.8]} 12... O-O-O {[%clk
0:00:35.3]} 13. Nd5 {[%clk 0:02:14.8]} 13... Nxd5 {[%clk 0:00:34.5]} 14. exd5
{[%clk 0:02:15.7]} 14... Nd4 {[%clk 0:00:33.8]} 15. Bxd4 {[%clk 0:02:07.6]}
15... cxd4 {[%clk 0:00:31.4]} 16. Bc4 {[%clk 0:02:03.2]} 16... g4 {[%clk
0:00:25.9]} 17. hxg4 {[%clk 0:01:59.3]} 17... Bxg4 {[%clk 0:00:27.8]} 18. Qf4
{[%clk 0:01:56.2]} 18... Bxf3 {[%clk 0:00:24]} 19. Qxf3 {[%clk 0:01:55.1]} 19...
Qc5 {[%clk 0:00:21.2]} 20. b3 {[%clk 0:01:45.8]} 20... Bf6 {[%clk 0:00:21.8]}
21. Rae1 {[%clk 0:01:39.5]} 21... Rhg8 {[%clk 0:00:21.8]} 22. Re4 {[%clk
0:01:33.2]} 22... Rg5 {[%clk 0:00:21.6]} 23. Rf4 {[%clk 0:01:32.5]} 23... Rdg8
{[%clk 0:00:21.1]} 24. g3 {[%clk 0:01:30.9]} 24... h5 {[%clk 0:00:15.8]} 25. Kh1
{[%clk 0:01:29.4]} 25... Be5 {[%clk 0:00:12.9]} 26. Rh4 {[%clk 0:01:17.9]} 26...
Qd6 {[%clk 0:00:08.6]} 27. Qxf7 {[%clk 0:01:01.9]} 27... Bxg3 {[%clk 0:00:07.9]}
28. Rh3 {[%clk 0:00:50.6]} 28... Bxf2 {[%clk 0:00:07.4]} 29. Qe6+ {[%clk
0:00:47.8]} 29... Qxe6 {[%clk 0:00:07.7]} 30. dxe6 {[%clk 0:00:49]} 30... Be3
{[%clk 0:00:08.3]} 31. Rhf3 {[%clk 0:00:46.4]} 31... Rg1+ {[%clk 0:00:08.4]} 32.
Rxg1 {[%clk 0:00:44.5]} 32... Rxg1+ {[%clk 0:00:10.3]} 33. Kh2 {[%clk
0:00:45.7]} 33... Rc1 {[%clk 0:00:09.4]} 34. Bd3 {[%clk 0:00:45]} 34... Bg5
{[%clk 0:00:09.3]} 35. Rf5 {[%clk 0:00:43.5]} 35... Bf6 {[%clk 0:00:09.4]} 36.
Rxh5 {[%clk 0:00:43.6]} 36... Kc7 {[%clk 0:00:10.3]} 37. Rd5 {[%clk 0:00:42.4]}
37... Kc6 {[%clk 0:00:09.2]} 38. Rd7 {[%clk 0:00:43]} 38... b6 {[%clk
0:00:08.9]} 39. Kg3 {[%clk 0:00:43.6]} 39... a5 {[%clk 0:00:08.9]} 40. Kf3
{[%clk 0:00:44.2]} 40... Kc5 {[%clk 0:00:09.1]} 41. Ke4 {[%clk 0:00:44.7]} 41...
Re1+ {[%clk 0:00:09.5]} 42. Kf5 {[%clk 0:00:45.5]} 42... Rf1+ {[%clk 0:00:10.3]}
43. Kg6 {[%clk 0:00:46.4]} 43... Rg1+ {[%clk 0:00:10.6]} 44. Kf7 {[%clk
0:00:47.4]} 44... Rg7+ {[%clk 0:00:09]} 45. Kf8 {[%clk 0:00:46.6]} 45... Rh7
{[%clk 0:00:08.5]} 46. Kg8 {[%clk 0:00:42.5]} 46... Rh8+ {[%clk 0:00:08.1]} 47.
Kf7 {[%clk 0:00:43]} 47... Kc6 {[%clk 0:00:04.7]} 48. Bb5+ {[%clk 0:00:32.1]}
48... Kc5 {[%clk 0:00:03.8]} 49. Rxe7 {[%clk 0:00:23.4]} 49... Bxe7 {[%clk
0:00:04.6]} 50. Kxe7 {[%clk 0:00:24.1]} 1-0

[Event "*** Qualifier 1: Titled Tuesday 3|2 Blitz"]
[Site "Chess.com"]
[Date "2017.04.04"]
[Round "3"]
[White "Zlatan56"]
[Black "GMMelik"]
[Result "1-0"]
[WhiteElo "2647"]
[BlackElo "2474"]
[TimeControl "180+2"]
[EndTime "13:39:05 PDT"]
[Termination "Zlatan56 won by resignation"]

1. Nf3 {[%clk 0:03:02]} 1... Nf6 {[%clk 0:02:18.4]} 2. g3 {[%clk 0:03:01.9]}
2... g6 {[%clk 0:02:19.4]} 3. b3 {[%clk 0:03:01.2]} 3... Bg7 {[%clk 0:02:20.5]}
4. Bb2 {[%clk 0:03:02.6]} 4... O-O {[%clk 0:02:22.1]} 5. Bg2 {[%clk 0:03:03.2]}
5... d5 {[%clk 0:02:23]} 6. c4 {[%clk 0:03:01.7]} 6... c6 {[%clk 0:02:24.1]} 7.
O-O {[%clk 0:03:01.3]} 7... Bg4 {[%clk 0:02:25]} 8. d4 {[%clk 0:03:02]} 8...
Bxf3 {[%clk 0:02:25.5]} 9. Bxf3 {[%clk 0:03:00.7]} 9... e6 {[%clk 0:02:27.4]}
10. Nd2 {[%clk 0:02:53]} 10... Nbd7 {[%clk 0:02:28.4]} 11. e3 {[%clk 0:02:53.3]}
11... h5 {[%clk 0:02:29]} 12. Bg2 {[%clk 0:02:53.4]} 12... Nh7 {[%clk 0:02:30]}
13. e4 {[%clk 0:02:50.9]} 13... dxc4 {[%clk 0:02:25.2]} 14. Nxc4 {[%clk
0:02:49.7]} 14... Nb6 {[%clk 0:02:25.4]} 15. Na5 {[%clk 0:02:42.9]} 15... Rb8
{[%clk 0:02:21.6]} 16. b4 {[%clk 0:02:38.1]} 16... Qe7 {[%clk 0:02:09.4]} 17.
Qb3 {[%clk 0:02:34.2]} 17... Rfd8 {[%clk 0:02:10.2]} 18. Rad1 {[%clk 0:02:30.9]}
18... a6 {[%clk 0:02:04]} 19. a3 {[%clk 0:02:22.5]} 19... Na8 {[%clk 0:01:55]}
20. Qe3 {[%clk 0:02:19.7]} 20... Nc7 {[%clk 0:01:55]} 21. Nb3 {[%clk 0:02:21.1]}
21... Nb5 {[%clk 0:01:51.5]} 22. Rd3 {[%clk 0:02:14.9]} 22... Nd6 {[%clk
0:01:23]} 23. Rc1 {[%clk 0:02:12.2]} 23... h4 {[%clk 0:01:22.1]} 24. Ba1 {[%clk
0:02:07.4]} 24... Nb5 {[%clk 0:01:21.1]} 25. Nc5 {[%clk 0:02:00.6]} 25... hxg3
{[%clk 0:01:17.3]} 26. hxg3 {[%clk 0:02:00.3]} 26... Qg5 {[%clk 0:01:03.3]} 27.
Qxg5 {[%clk 0:01:50.6]} 27... Nxg5 {[%clk 0:01:03.2]} 28. Rcd1 {[%clk
0:01:51.9]} 28... Nh7 {[%clk 0:00:52.1]} 29. d5 {[%clk 0:01:42.1]} 29... Bxa1
{[%clk 0:00:50.3]} 30. Rxa1 {[%clk 0:01:44]} 30... cxd5 {[%clk 0:00:46.9]} 31.
exd5 {[%clk 0:01:43.5]} 31... exd5 {[%clk 0:00:41.7]} 32. Rxd5 {[%clk
0:01:41.7]} 32... Rxd5 {[%clk 0:00:30.1]} 33. Bxd5 {[%clk 0:01:43.6]} 33... b6
{[%clk 0:00:31.5]} 34. Nxa6 {[%clk 0:01:41.3]} 34... Rd8 {[%clk 0:00:32.3]} 35.
Bc4 {[%clk 0:01:34.7]} 35... Nd4 {[%clk 0:00:27.9]} 36. Kg2 {[%clk 0:01:30.8]}
36... Ng5 {[%clk 0:00:28]} 37. Rd1 {[%clk 0:01:26.7]} 37... Kf8 {[%clk
0:00:22.5]} 38. Nc7 {[%clk 0:01:24.1]} 38... Rd6 {[%clk 0:00:22.9]} 39. Rd3
{[%clk 0:01:10.5]} 39... f5 {[%clk 0:00:17.4]} 40. Nb5 {[%clk 0:01:08.3]} 40...
Nxb5 {[%clk 0:00:17.4]} 41. Bxb5 {[%clk 0:01:10.2]} 41... Rxd3 {[%clk
0:00:16.3]} 42. Bxd3 {[%clk 0:01:10.1]} 42... Ke7 {[%clk 0:00:18.2]} 43. a4
{[%clk 0:01:07.1]} 43... Kd6 {[%clk 0:00:19.2]} 44. f4 {[%clk 0:00:42.8]} 44...
Ne6 {[%clk 0:00:18.5]} 45. a5 {[%clk 0:00:41.5]} 45... bxa5 {[%clk 0:00:19.2]}
46. bxa5 {[%clk 0:00:42.9]} 46... Kc5 {[%clk 0:00:19]} 47. a6 {[%clk 0:00:43.8]}
47... Kb6 {[%clk 0:00:20.1]} 48. Kf3 {[%clk 0:00:42.5]} 48... Nc5 {[%clk
0:00:19.7]} 49. Ke3 {[%clk 0:00:39.5]} 49... Nd7 {[%clk 0:00:11.3]} 50. Be2
{[%clk 0:00:20.8]} 50... Nf6 {[%clk 0:00:11.9]} 51. Kd4 {[%clk 0:00:19.5]} 51...
Nd7 {[%clk 0:00:08]} 52. Kd5 {[%clk 0:00:18.6]} 52... Nc5 {[%clk 0:00:09.2]} 53.
Bf3 {[%clk 0:00:17.2]} 53... Nd3 {[%clk 0:00:10]} 54. Ke6 {[%clk 0:00:17.1]}
54... Kxa6 {[%clk 0:00:07]} 55. Be2 {[%clk 0:00:16.8]} 1-0

[Event "*** Qualifier 1: Titled Tuesday 3|2 Blitz"]
[Site "Chess.com"]
[Date "2017.04.04"]
[Round "3"]
[White "ruvat"]
[Black "jeaston1"]
[Result "1-0"]
[WhiteElo "2245"]
[BlackElo "2153"]
[TimeControl "180+2"]
[EndTime "13:39:16 PDT"]
[Termination "ruvat won by resignation"]

1. d4 {[%clk 0:02:43.2]} 1... d5 {[%clk 0:03:00.4]} 2. c4 {[%clk 0:02:44]} 2...
dxc4 {[%clk 0:03:00.5]} 3. Nf3 {[%clk 0:02:44.7]} 3... Nf6 {[%clk 0:03:00]} 4.
Qa4+ {[%clk 0:02:45.6]} 4... Nbd7 {[%clk 0:02:56.1]} 5. Nc3 {[%clk 0:02:45.9]}
5... e6 {[%clk 0:02:56.6]} 6. e4 {[%clk 0:02:46.7]} 6... c6 {[%clk 0:02:55.4]}
7. Qxc4 {[%clk 0:02:44.3]} 7... Nb6 {[%clk 0:02:56.5]} 8. Qb3 {[%clk 0:02:42.6]}
8... Be7 {[%clk 0:02:54.2]} 9. Be2 {[%clk 0:02:39.2]} 9... O-O {[%clk 0:02:55]}
10. O-O {[%clk 0:02:39.8]} 10... Qc7 {[%clk 0:02:54.7]} 11. Bg5 {[%clk
0:02:33.5]} 11... h6 {[%clk 0:02:55]} 12. Bh4 {[%clk 0:02:34.4]} 12... Rd8
{[%clk 0:02:40.1]} 13. Bg3 {[%clk 0:02:33.1]} 13... Qd7 {[%clk 0:02:40.7]} 14.
Rfd1 {[%clk 0:02:29]} 14... Qe8 {[%clk 0:02:41.7]} 15. a4 {[%clk 0:02:28.3]}
15... Nbd7 {[%clk 0:02:39]} 16. a5 {[%clk 0:02:22.4]} 16... c5 {[%clk
0:02:15.7]} 17. Bc7 {[%clk 0:02:18.7]} 17... cxd4 {[%clk 0:02:13.1]} 18. Bxd8
{[%clk 0:02:06.5]} 18... dxc3 {[%clk 0:02:03.9]} 19. Bxe7 {[%clk 0:02:06.2]}
19... cxb2 {[%clk 0:02:00.8]} 20. Bxf6 {[%clk 0:01:57]} 20... bxa1=Q {[%clk
0:02:01.6]} 21. Bxa1 {[%clk 0:01:56.3]} 21... b6 {[%clk 0:02:01.5]} 22. Qc3
{[%clk 0:01:39.5]} 22... f6 {[%clk 0:01:57.6]} 23. Qc6 {[%clk 0:01:36.5]} 23...
Rb8 {[%clk 0:01:42]} 24. Bc4 {[%clk 0:01:37.2]} 24... Kf7 {[%clk 0:01:33]} 25.
Nd4 {[%clk 0:01:32.6]} 25... Nc5 {[%clk 0:01:26.9]} 26. Qxe8+ {[%clk 0:01:30.9]}
26... Kxe8 {[%clk 0:01:26.6]} 27. Bb5+ {[%clk 0:01:26.2]} 27... Bd7 {[%clk
0:00:54.8]} 28. Bxd7+ {[%clk 0:01:22.4]} 28... Kxd7 {[%clk 0:00:54]} 29. axb6
{[%clk 0:01:20.3]} 29... Rxb6 {[%clk 0:00:50.4]} 30. Nf5+ {[%clk 0:01:18.4]}
30... Kc7 {[%clk 0:00:43.8]} 31. Nxg7 {[%clk 0:01:15.9]} 31... Nxe4 {[%clk
0:00:44.8]} 32. f3 {[%clk 0:01:15]} 32... Nd6 {[%clk 0:00:18.6]} 33. Nxe6+
{[%clk 0:01:13]} 33... Kb7 {[%clk 0:00:18]} 34. Bxf6 {[%clk 0:01:08.8]} 34...
Nc4 {[%clk 0:00:11.2]} 35. Nc5+ {[%clk 0:01:06]} 35... Kc6 {[%clk 0:00:12.2]}
36. Ne4 {[%clk 0:01:06.6]} 36... Kb7 {[%clk 0:00:07.6]} 37. Bd4 {[%clk
0:00:57.6]} 37... Rc6 {[%clk 0:00:08.8]} 38. Rb1+ {[%clk 0:00:55.5]} 38... Kc8
{[%clk 0:00:10.2]} 39. Bxa7 {[%clk 0:00:54.3]} 39... Na3 {[%clk 0:00:10.3]} 40.
Ra1 {[%clk 0:00:51.6]} 40... Nb5 {[%clk 0:00:11.1]} 41. Be3 {[%clk 0:00:50.4]}
41... Nc7 {[%clk 0:00:12.6]} 42. Rc1 {[%clk 0:00:49.4]} 42... Rxc1+ {[%clk
0:00:12.8]} 43. Bxc1 {[%clk 0:00:50.4]} 43... Kd7 {[%clk 0:00:14.7]} 44. Bxh6
{[%clk 0:00:50.1]} 44... Ke6 {[%clk 0:00:15.7]} 45. g4 {[%clk 0:00:49.9]} 45...
Nd5 {[%clk 0:00:17.2]} 46. Bd2 {[%clk 0:00:49.7]} 46... Kf7 {[%clk 0:00:18.3]}
47. h4 {[%clk 0:00:50.4]} 47... Ne7 {[%clk 0:00:19.2]} 48. h5 {[%clk 0:00:51]}
48... Kg8 {[%clk 0:00:19.6]} 49. Kg2 {[%clk 0:00:52.2]} 49... Kh7 {[%clk
0:00:21.2]} 50. Kg3 {[%clk 0:00:53.3]} 50... Kg7 {[%clk 0:00:21.6]} 51. f4
{[%clk 0:00:54.4]} 51... Kh7 {[%clk 0:00:23.1]} 52. f5 {[%clk 0:00:54.1]} 52...
Kg8 {[%clk 0:00:24.2]} 53. h6 {[%clk 0:00:51.6]} 53... Nd5 {[%clk 0:00:25.5]}
54. g5 {[%clk 0:00:49.8]} 54... Ne7 {[%clk 0:00:25.5]} 55. Kg4 {[%clk
0:00:50.6]} 55... Kh7 {[%clk 0:00:26.4]} 56. Bc3 {[%clk 0:00:48.2]} 56... Kg8
{[%clk 0:00:25.1]} 57. Nf6+ {[%clk 0:00:48.7]} 57... Kh8 {[%clk 0:00:21.1]} 58.
Nd5+ {[%clk 0:00:47.5]} 58... Kh7 {[%clk 0:00:21.6]} 59. g6+ {[%clk 0:00:36.9]}
59... Nxg6 {[%clk 0:00:20.2]} 60. fxg6+ {[%clk 0:00:37.3]} 60... Kxg6 {[%clk
0:00:20]} 61. Bg7 {[%clk 0:00:36.4]} 61... Kh7 {[%clk 0:00:21.9]} 62. Nf6+
{[%clk 0:00:34.9]} 62... Kg6 {[%clk 0:00:22.5]} 63. Kf4 {[%clk 0:00:34.6]} 63...
Kf7 {[%clk 0:00:23.8]} 64. Kf5 {[%clk 0:00:33.4]} 1-0

[Event "*** Qualifier 1: Titled Tuesday 3|2 Blitz"]
[Site "Chess.com"]
[Date "2017.04.04"]
[Round "3"]
[White "Keaton87"]
[Black "Sven_Tica"]
[Result "1-0"]
[WhiteElo "2488"]
[BlackElo "2419"]
[TimeControl "180+2"]
[EndTime "13:39:27 PDT"]
[Termination "Keaton87 won by resignation"]

1. d4 {[%clk 0:03:01.9]} 1... d5 {[%clk 0:03:00.8]} 2. Bf4 {[%clk 0:03:01.9]}
2... e6 {[%clk 0:03:01.9]} 3. Nf3 {[%clk 0:03:01.7]} 3... Bd6 {[%clk 0:03:02.5]}
4. Bg3 {[%clk 0:03:02.5]} 4... Qe7 {[%clk 0:03:03.5]} 5. e3 {[%clk 0:03:03.1]}
5... Bxg3 {[%clk 0:03:03.4]} 6. hxg3 {[%clk 0:03:03.6]} 6... Qb4+ {[%clk
0:03:05]} 7. Nbd2 {[%clk 0:02:47.1]} 7... Qxb2 {[%clk 0:03:05.3]} 8. Bd3 {[%clk
0:02:47.6]} 8... Nf6 {[%clk 0:03:05.2]} 9. Ne5 {[%clk 0:02:45.3]} 9... Nbd7
{[%clk 0:02:56.4]} 10. f4 {[%clk 0:02:43.9]} 10... Qc3 {[%clk 0:02:43]} 11. Ke2
{[%clk 0:02:42.9]} 11... c5 {[%clk 0:02:38]} 12. Nxd7 {[%clk 0:02:21.6]} 12...
Bxd7 {[%clk 0:02:35.8]} 13. dxc5 {[%clk 0:02:22.7]} 13... Qxc5 {[%clk
0:02:29.8]} 14. c4 {[%clk 0:02:23.8]} 14... Ng4 {[%clk 0:02:22.1]} 15. Qg1
{[%clk 0:02:13.5]} 15... dxc4 {[%clk 0:02:08]} 16. Nxc4 {[%clk 0:02:11.6]} 16...
b5 {[%clk 0:02:03.1]} 17. Nd2 {[%clk 0:02:11.8]} 17... Nf6 {[%clk 0:01:59.3]}
18. e4 {[%clk 0:02:10.6]} 18... Qxg1 {[%clk 0:01:54.4]} 19. Raxg1 {[%clk
0:02:12]} 19... Ke7 {[%clk 0:01:52.4]} 20. Rb1 {[%clk 0:02:10.4]} 20... Rab8
{[%clk 0:01:50.7]} 21. e5 {[%clk 0:02:10.9]} 21... Nd5 {[%clk 0:01:51.2]} 22.
Rb2 {[%clk 0:02:10.3]} 22... Nc3+ {[%clk 0:01:49.4]} 23. Ke3 {[%clk 0:02:08.6]}
23... g6 {[%clk 0:01:46]} 24. Ne4 {[%clk 0:02:09.5]} 24... Nxe4 {[%clk
0:01:45.2]} 25. Bxe4 {[%clk 0:02:11.4]} 25... Rhc8 {[%clk 0:01:46.2]} 26. Rxh7
{[%clk 0:02:11.4]} 26... Kf8 {[%clk 0:01:32.7]} 27. Bxg6 {[%clk 0:02:07.8]}
27... Be8 {[%clk 0:01:22.5]} 28. Be4 {[%clk 0:02:04.4]} 28... Rc3+ {[%clk
0:01:23.3]} 29. Kf2 {[%clk 0:02:05.1]} 29... a5 {[%clk 0:01:22.5]} 30. Rh1
{[%clk 0:01:56.4]} 30... b4 {[%clk 0:01:22.3]} 31. Re1 {[%clk 0:01:56.7]} 31...
Rbc8 {[%clk 0:01:16.4]} 32. Re3 {[%clk 0:01:56.2]} 32... Bb5 {[%clk 0:01:12.9]}
33. Rxc3 {[%clk 0:01:54.3]} 33... Rxc3 {[%clk 0:01:12.8]} 34. Rc2 {[%clk
0:01:55.1]} 34... Rxc2+ {[%clk 0:00:50]} 35. Bxc2 {[%clk 0:01:55.5]} 35... Bc4
{[%clk 0:00:51.3]} 36. Bb1 {[%clk 0:01:46.5]} 36... a4 {[%clk 0:00:52]} 37. Ke3
{[%clk 0:01:47.1]} 37... b3 {[%clk 0:00:51.2]} 38. a3 {[%clk 0:01:42.7]} 38...
Bd5 {[%clk 0:00:47.3]} 39. Kd4 {[%clk 0:01:30.2]} 39... Bxg2 {[%clk 0:00:47.8]}
40. Kc3 {[%clk 0:01:31.8]} 40... Kg7 {[%clk 0:00:44.4]} 41. Bd3 {[%clk
0:01:22.1]} 41... Bc6 {[%clk 0:00:43.7]} 42. g4 {[%clk 0:01:07.5]} 42... Kh6
{[%clk 0:00:41.4]} 43. Be2 {[%clk 0:00:55.8]} 43... Kg7 {[%clk 0:00:38.6]} 44.
Bd3 {[%clk 0:00:54]} 44... Kh6 {[%clk 0:00:39.5]} 45. Be2 {[%clk 0:00:55.1]}
45... Kg7 {[%clk 0:00:40.7]} 46. Bd1 {[%clk 0:00:56.3]} 46... f6 {[%clk
0:00:32.7]} 47. exf6+ {[%clk 0:00:50]} 47... Kxf6 {[%clk 0:00:34.6]} 48. Be2
{[%clk 0:00:49.7]} 48... e5 {[%clk 0:00:33.7]} 49. g5+ {[%clk 0:00:48.8]} 49...
Kf5 {[%clk 0:00:33.5]} 50. fxe5 {[%clk 0:00:47.2]} 50... Kxe5 {[%clk 0:00:33.1]}
51. Bd3 {[%clk 0:00:45.8]} 51... Be8 {[%clk 0:00:32.6]} 52. Bb1 {[%clk
0:00:38.1]} 52... Ke6 {[%clk 0:00:23]} 53. Kb4 {[%clk 0:00:37.8]} 53... Kf7
{[%clk 0:00:20.1]} 54. Bd3 {[%clk 0:00:34.2]} 54... Kg7 {[%clk 0:00:21]} 55. Kc3
{[%clk 0:00:30.3]} 55... Bg6 {[%clk 0:00:20.4]} 56. Bb5 {[%clk 0:00:30.4]} 56...
b2 {[%clk 0:00:20.4]} 57. Kxb2 {[%clk 0:00:30.3]} 57... Be4 {[%clk 0:00:17]} 58.
Be8 {[%clk 0:00:31.1]} 58... Bd5 {[%clk 0:00:13.6]} 59. Kc3 {[%clk 0:00:32.2]}
59... Bb3 {[%clk 0:00:13.2]} 60. Kb4 {[%clk 0:00:33.2]} 60... Bd1 {[%clk
0:00:14.5]} 61. Bxa4 {[%clk 0:00:33.5]} 61... Bf3 {[%clk 0:00:15.9]} 62. Bc2
{[%clk 0:00:34.5]} 62... Bd5 {[%clk 0:00:10.8]} 63. a4 {[%clk 0:00:32.5]} 1-0

[Event "*** Qualifier 1: Titled Tuesday 3|2 Blitz"]
[Site "Chess.com"]
[Date "2017.04.04"]
[Round "3"]
[White "FairChess_on_YouTube"]
[Black "Gabix_94"]
[Result "1/2-1/2"]
[WhiteElo "2724"]
[BlackElo "2510"]
[TimeControl "180+2"]
[EndTime "13:39:33 PDT"]
[Termination "Game drawn by repetition"]

1. d4 {[%clk 0:03:02]} 1... Nf6 {[%clk 0:03:00.6]} 2. c4 {[%clk 0:03:00.9]} 2...
c5 {[%clk 0:03:01.4]} 3. Nf3 {[%clk 0:02:58.7]} 3... cxd4 {[%clk 0:03:02.1]} 4.
Nxd4 {[%clk 0:02:59.7]} 4... e6 {[%clk 0:03:03.5]} 5. g3 {[%clk 0:02:59.3]} 5...
d5 {[%clk 0:03:03.5]} 6. Bg2 {[%clk 0:02:58.9]} 6... e5 {[%clk 0:03:03.8]} 7.
Nf3 {[%clk 0:02:53.8]} 7... d4 {[%clk 0:03:03.6]} 8. O-O {[%clk 0:02:54.4]} 8...
Nc6 {[%clk 0:03:03.4]} 9. e3 {[%clk 0:02:55.4]} 9... Bc5 {[%clk 0:03:04.1]} 10.
exd4 {[%clk 0:02:55.1]} 10... exd4 {[%clk 0:03:06]} 11. Re1+ {[%clk 0:02:47.2]}
11... Be6 {[%clk 0:03:05.5]} 12. Bg5 {[%clk 0:02:37]} 12... O-O {[%clk
0:02:51.3]} 13. Nbd2 {[%clk 0:02:37.9]} 13... h6 {[%clk 0:02:30]} 14. Nb3 {[%clk
0:02:25.6]} 14... Bb4 {[%clk 0:02:15.8]} 15. Bd2 {[%clk 0:02:26.1]} 15... Bxc4
{[%clk 0:02:12.4]} 16. Nfxd4 {[%clk 0:02:10.2]} 16... Nxd4 {[%clk 0:01:32.5]}
17. Bxb4 {[%clk 0:02:00.4]} 17... Ne2+ {[%clk 0:01:32.5]} 18. Kh1 {[%clk
0:01:15.3]} 18... Ng4 {[%clk 0:01:29]} 19. Bc5 {[%clk 0:01:15.9]} 19... b6
{[%clk 0:01:17.8]} 20. Be3 {[%clk 0:00:31.1]} 20... Re8 {[%clk 0:01:02.4]} 21.
Rxe2 {[%clk 0:00:17.5]} 21... Qxd1+ {[%clk 0:01:00.4]} 22. Rxd1 {[%clk
0:00:19.4]} 22... Bxe2 {[%clk 0:01:01.6]} 23. Re1 {[%clk 0:00:17.9]} 23... Bc4
{[%clk 0:00:58.1]} 24. Bxa8 {[%clk 0:00:17.4]} 24... Rxa8 {[%clk 0:01:00]} 25.
h3 {[%clk 0:00:12.7]} 25... Ne5 {[%clk 0:00:56.7]} 26. Nd2 {[%clk 0:00:11.6]}
26... Bxa2 {[%clk 0:00:52.6]} 27. b3 {[%clk 0:00:12.5]} 27... Nd3 {[%clk
0:00:28.4]} 28. Ra1 {[%clk 0:00:12.8]} 28... Nb4 {[%clk 0:00:29.6]} 29. Nc4
{[%clk 0:00:09.2]} 29... Bxb3 {[%clk 0:00:28.3]} 30. Nxb6 {[%clk 0:00:10.1]}
30... Re8 {[%clk 0:00:20.8]} 31. Rxa7 {[%clk 0:00:10.5]} 31... Nd5 {[%clk
0:00:21.4]} 32. Nxd5 {[%clk 0:00:11.5]} 32... Bxd5+ {[%clk 0:00:23.3]} 33. Kh2
{[%clk 0:00:12.8]} 33... Be6 {[%clk 0:00:24.6]} 34. g4 {[%clk 0:00:13.8]} 34...
Rd8 {[%clk 0:00:24.9]} 35. Kg3 {[%clk 0:00:14.8]} 35... Rd7 {[%clk 0:00:26.3]}
36. Ra5 {[%clk 0:00:14.9]} 36... Kh7 {[%clk 0:00:27.7]} 37. h4 {[%clk
0:00:14.1]} 37... Rd5 {[%clk 0:00:28.7]} 38. Ra4 {[%clk 0:00:13.6]} 38... h5
{[%clk 0:00:29.1]} 39. g5 {[%clk 0:00:14.2]} 39... Kg6 {[%clk 0:00:30.5]} 40.
Rb4 {[%clk 0:00:14.6]} 40... Re5 {[%clk 0:00:31.4]} 41. Rd4 {[%clk 0:00:14.3]}
41... Bf5 {[%clk 0:00:32.5]} 42. Rd6+ {[%clk 0:00:14.6]} 42... Re6 {[%clk
0:00:33.7]} 43. Rd8 {[%clk 0:00:12.9]} 43... Re4 {[%clk 0:00:34.5]} 44. Bf4
{[%clk 0:00:13.6]} 44... Rc4 {[%clk 0:00:34.4]} 45. Rg8 {[%clk 0:00:11.6]} 45...
Rc3+ {[%clk 0:00:34.7]} 46. f3 {[%clk 0:00:12.8]} 46... Rc5 {[%clk 0:00:34]} 47.
Be3 {[%clk 0:00:12.4]} 47... Rd5 {[%clk 0:00:34.7]} 48. Bc1 {[%clk 0:00:12.7]}
48... Kh7 {[%clk 0:00:35.9]} 49. Rf8 {[%clk 0:00:13.3]} 49... Kg6 {[%clk
0:00:36.3]} 50. Bb2 {[%clk 0:00:11.8]} 50... Rb5 {[%clk 0:00:37.3]} 51. Ba1
{[%clk 0:00:12.5]} 51... Ra5 {[%clk 0:00:38.6]} 52. Bd4 {[%clk 0:00:11.3]} 52...
Rd5 {[%clk 0:00:39.4]} 53. Bb2 {[%clk 0:00:10.6]} 53... Rb5 {[%clk 0:00:40.3]}
54. Bd4 {[%clk 0:00:10.4]} 54... Rd5 {[%clk 0:00:41.3]} 55. Be3 {[%clk
0:00:11.6]} 55... Be6 {[%clk 0:00:41]} 56. Rg8 {[%clk 0:00:10.5]} 56... Rd3
{[%clk 0:00:41.8]} 57. Kf4 {[%clk 0:00:09.9]} 57... Kh7 {[%clk 0:00:42]} 58. Rb8
{[%clk 0:00:10]} 58... Rb3 {[%clk 0:00:42.6]} 59. Rxb3 {[%clk 0:00:08.4]} 59...
Bxb3 {[%clk 0:00:43.3]} 60. Ke5 {[%clk 0:00:10]} 60... Bd1 {[%clk 0:00:43.4]}
61. f4 {[%clk 0:00:11.2]} 61... g6 {[%clk 0:00:44.1]} 62. Kf6 {[%clk 0:00:11.6]}
62... Kg8 {[%clk 0:00:45.4]} 63. Bc5 {[%clk 0:00:12.3]} 63... Bc2 {[%clk
0:00:46.4]} 64. Bd6 {[%clk 0:00:13.6]} 64... Bf5 {[%clk 0:00:47.5]} 65. Be7
{[%clk 0:00:14]} 65... Be6 {[%clk 0:00:48.8]} 66. Bd6 {[%clk 0:00:15.9]} 66...
Bf5 {[%clk 0:00:50.1]} 67. Be7 {[%clk 0:00:17.8]} 67... Be6 {[%clk 0:00:51.5]}
68. Bd6 {[%clk 0:00:19.7]} 68... Bf5 {[%clk 0:00:52.9]} 69. Be7 {[%clk
0:00:21.6]} 69... Be6 {[%clk 0:00:54.1]} 70. Bd6 {[%clk 0:00:23.5]} 70... Bf5
{[%clk 0:00:55.4]} 1/2-1/2